[Event "AUT Bundesliga 2024-25"]
[Site "Austria"]
[Date "2025.04.04"]
[Round "8.11"]
[White "Subelj, Jan"]
[Black "Stalmach, Richard"]
[Result "1-0"]
[Annotator "TA"]
[ECO "B96"]
[WhiteElo "2528"]
[BlackElo "2427"]
[PlyCount "159"]
[EventDate "2024.08.28"]
[EventType "team-tourn"]
[EventCountry "AUT"]
[SourceTitle "playchess.com"]
[Source "ChessBase"]
[SourceQuality "1"]
[TimeControl "40/5400+30:1800+30"]

{[%evp 16,159,10,18,23,9,14,14,42,-6,-10,-10,-5,-1,-4,-6,-8,-39,-56,-57,-66,-91,-88,-90,-29,-43,-30,-39,-48,-33,-35,-36,-53,-48,0,0,0,0,0,0,0,0,0,0,0,0,0,0,0,0,0,0,0,0,0,-33,13,10,10,0,9,19,29,0,0,0,227,227,227,227,227,220,212,40,240,237,246,191,191,148,147,138,190,184,178,169,140,119,135,125,133,48,87,0,56,66,101,96,118,90,110,32,101,59,65,4,0,0,91,31,97,68,176,172,178,145,177,158,231,168,403,393,539,577,572,543,619,594,661,560,564,557,481,479,796,785,749,689,1441,1493,1377,1318,1315,1312,1284,1137]} 1. e4 {[%emt 0:00:58]} c5 {[%emt 0:00:07]} 2. Nf3 {[%emt 0:00:09]} d6 {[%emt 0:00:05]} 3. d4 {[%emt 0:00:11]} cxd4 {[%emt 0:00:04]} 4. Nxd4 {[%emt 0:00:05]} Nf6 {[%emt 0:00:04]} 5. Nc3 {[%emt 0:00:10]} a6 {[%emt 0:00:05]} 6. Bg5 {[%emt 0:00:50]} e6 {[%emt 0:00:25][%cal Be7e6,Be6e5][%mdl 32]} 7. f4 {[%emt 0:00:48]} h6 {[%emt 0:00:06]} 8. Bh4 {[%emt 0:00:26]} Qb6 {[%emt 0:00:07]} 9. a3 $1 {[%emt 0:00:30] 9.a3 is better than 9.Qd2.} Nc6 {[%emt 0:00:12] B96: Sicilian Najdorf: 6 Bg5 e6 7 f4, lines other than 7...Qb6 and 7...Be7.} (9... Qxb2 $2 10. Na4 $18) 10. Bf2 {[%emt 0:02:10][%cal Od4e6]} Qc7 {[%emt 0:00:05]} (10... Qxb2 $2 11. Na4 $18) 11. Qf3 {[%emt 0:02:11]} e5 {[%emt 0:00:08] The position is equal.} 12. Nf5 {[%emt 0:10:41]} (12. Nde2 $14) 12... Bxf5 $1 $11 {[%emt 0:00:10]} 13. exf5 {[%emt 0:00:05]} O-O-O {[%emt 0:01:10][%cal Oe5e4] White should prevent ...e4!.} 14. O-O-O {[%emt 0:05:39] [#]} d5 {[%emt 0:00:05] Wards off Bc4} 15. fxe5 {[%emt 0:03:20]} Nxe5 {[%emt 0:00:04]} 16. Qh3 {[%emt 0:00:07]} Neg4 $146 {[%emt 0:06:33] A dynamic duo of knights.} (16... Bc5 17. Bg3 Be3+ 18. Kb1 d4 19. Na2 Rhe8 20. Bd3 Qc5 21. Bxe5 Qxe5 22. Rhf1 Kb8 {0-1 Della Morte,G (2322)-Nigalidze,G (2373) Titled Tuesday intern op 30th Jan Early blitz 2024 (9)}) 17. Bg3 {[%emt 0:08:27]} Bd6 {[%emt 0:00:14]} 18. Be2 {[%emt 0:00:04]} (18. Nxd5 $2 Bxg3 19. Nxc7 Nf2 (19... Bf4+ 20. Kb1 $17) 20. Bxa6 (20. Qxg3 $2 Rxd1#) (20. Rxd8+ $2 Rxd8 21. Bxa6 Bf4+ 22. Kb1 Nxh3 $19) 20... Rxd1+ (20... Nxh3 $2 21. gxh3 Rxd1+ 22. Rxd1 $19) 21. Rxd1 Bf4+ (21... Nxh3 22. hxg3 Nf2 23. Re1 $19) 22. Kb1 Nxh3 23. gxh3 Kxc7 $19 (23... Bxc7 $2 24. Bb5 $19)) 18... Bxg3 {[%emt 0:08:43]} 19. Bxg4 {[%emt 0:00:04]} Qf4+ {[%emt 0:00:11]} (19... Be5 $17 {...Bxc3 would now be deadly.} 20. Rd3 d4) 20. Kb1 {[%emt 0:00:07]} Qxg4 {[%emt 0:00:05]} 21. hxg3 {[%emt 0:02:09]} d4 {[%emt 0:01:14]} 22. Qxg4 {[%emt 0:02:58]} Nxg4 {[%emt 0:07:06]} 23. Rh4 $1 {[%emt 0:00:05]} h5 {[%emt 0:17:46]} 24. Ne2 {[%emt 0:01:26]} g5 {[%emt 0:01:14]} (24... Ne3 $1 $15 {is more appropriate.} 25. Rdxd4 Nxf5 26. Rxd8+ Kxd8) 25. fxg6 {[%emt 0:01:19]} fxg6 {[%emt 0:00:06]} 26. Rd2 $1 {[%emt 0:09:26]} (26. Nxd4 $2 g5 27. Rxg4 hxg4 $19) (26. Rxd4 Rhe8 27. Rxd8+ Kxd8 $15) 26... Rhf8 {[%emt 0:04:56]} 27. Nxd4 {[%emt 0:49:35]} (27. Rxd4 Rf1+ 28. Ka2 Rxd4 29. Nxd4 Rg1) 27... Rf1+ {[%emt 0:00:04]} 28. Ka2 {[%emt 0:00:00]} Re1 {[%emt 0:03:17]} 29. c3 {[%emt 0:00:00]} Rde8 {[%emt 0:00:21]} 30. Rh3 {[%emt 0:00:00]} Kb8 {[%emt 0:09:32]} 31. Kb3 {[%emt 0:00:00]} Ka7 {[%emt 0:00:19]} 32. Rh4 {[%emt 0:00:00]} R8e3 {[%emt 0:01:27]} 33. Rh3 {[%emt 0:00:00]} Nf6 {[%emt 0:06:36]} 34. Rf2 {[%emt 0:00:00]} Ne4 {[%emt 0:00:25][%csl LRf2,LRg3]} 35. Rf4 {[%emt 0:00:00]} Rg1 {[%emt 0:02:12]} (35... Rd1 $15 36. Kb4 (36. g4 $2 Rxd4 37. Rxe3 Nc5+ 38. Ka2 Rxf4 $19) 36... Rd2 (36... Nxg3 37. Rf7 $11)) 36. g4 {[%emt 0:00:00]} Nd2+ $1 {[%emt 0:05:54]} 37. Kb4 {[%emt 0:00:00]} Re5 {[%emt 0:02:24]} 38. gxh5 {[%emt 0:00:00]} gxh5 {[%emt 0:09:35][%cal Og1b1]} 39. Rf7 {[%emt 0:00:00]} a5+ {[%emt 0:03:37]} 40. Ka4 {[%emt 0:00:00]} Ka6 $2 {[%emt 0:04:10]} (40... Rxg2 $11 {and Black stays safe.} 41. b4 (41. Nc6+ Ka6 $11) 41... Nc4) 41. Rg3 $1 $18 {[%emt 0:19:56]} b5+ {[%emt 0:22:39]} 42. Nxb5 {[%emt 0:00:00]} Rxb5 {[%emt 0:00:04]} 43. Rgg7 $1 {[%emt 0:00:00]} Rb8 {[%emt 0:00:43][%cal Od2c4]} (43... Rxb2 $2 44. Ra7+ Kb6 45. Rab7+ (45. Rxa5 Rf1 $17) 45... Kc5 46. Rxb2 $18) 44. Ra7+ $1 {[%emt 0:00:00]} Kb6 {[%emt 0:00:07]} 45. Rad7 $1 {[%emt 0:00:00]} (45. Rxa5 Rc8 $16) 45... Nb3 {[%emt 0:04:14]} 46. Kxb3 {[%emt 0:00:00][%mdl 4096] Endgame KRR-KRR. White is two pawns up.} Kc6+ {[%emt 0:00:03]} 47. Kc4 {[%emt 0:00:00]} (47. Ka2 Rxg2 48. Rxg2 (48. Rc7+ Kd6 $16) 48... Kxd7) 47... Rxg2 {[%emt 0:05:56]} 48. Rc7+ {[%emt 0:00:00]} Kd6 {[%emt 0:00:46]} (48... Kb6 $16) 49. Rgd7+ {[%emt 0:00:00]} Ke6 {[%emt 0:00:14]} 50. b4 {[%emt 0:00:00]} Rg4+ {[%emt 0:02:45]} 51. Kc5 {[%emt 0:00:00]} Rg5+ {[%emt 0:01:24]} 52. Kc6 {[%emt 0:00:00]} Rgb5 {[%emt 0:01:04][%csl Gb5][%cal Rb8b6]} 53. Rd6+ {[%emt 0:00:00]} (53. Re7+ $1 $16 Kf5 54. Rf7+ Kg5 55. Rf3 (55. Rg7+ Kh6 $16)) 53... Ke5 $14 {[%emt 0:00:20]} 54. Re7+ {[%emt 0:00:00]} (54. Rd4 $1 $16) 54... Kf4 {[%emt 0:00:01]} (54... Kf5 $1 $11) 55. Rd4+ {[%emt 0:00:00]} Kf3 {[%emt 0:00:26]} 56. Ra7 {[%emt 0:00:00] White has more active pieces.} axb4 {[%emt 0:00:43]} 57. axb4 {[%emt 0:01:18]} Rf5 {[%emt 0:00:02]} 58. Ra1 {[%emt 0:01:21]} (58. Ra3 $16 {Hoping for c4+.} Ke2 59. Ra7) 58... Rg5 {[%emt 0:02:06]} (58... Rfb5 $1 $14) 59. Ra5 {[%emt 0:03:18]} Rg6+ {[%emt 0:04:24]} 60. Kc7 {[%emt 0:01:41]} ({Better is} 60. Kc5 $14) 60... Rh8 $11 {[%emt 0:00:04]} 61. Rf5+ {[%emt 0:00:05]} Kg3 {[%emt 0:00:34]} (61... Ke2 $11) 62. Rd3+ {[%emt 0:00:50]} (62. b5 $1 $16) 62... Kg2 {[%emt 0:00:01]} (62... Kg4 $14 63. Rf1 Rh7+ 64. Rd7 Rxd7+ 65. Kxd7 Rg7+ 66. Kc6 Rg6+ 67. Kd5 Rg5+ 68. Kd4 h4) 63. Rd2+ $16 {[%emt 0:00:05] Black is on the road to losing.} Kg3 {[%emt 0:00:04] [#]} (63... Kg1 $1 $14) 64. b5 $1 $18 {[%emt 0:09:14]} h4 {[%emt 0:00:09] [#]} 65. Rf1 $1 {[%emt 0:00:07]} Rg7+ {[%emt 0:01:56]} 66. Kb6 {[%emt 0:00:58]} Rb8+ {[%emt 0:00:27]} (66... Rh6+ $16 67. Ka5 Ra7+ 68. Kb4 h3 69. Rg1+ Kf3) 67. Ka5 {[%emt 0:00:06]} Rc7 $2 {[%emt 0:00:55]} (67... Ra8+ 68. Kb4 Rga7) 68. Kb4 {[%emt 0:00:30]} Rbc8 {[%emt 0:00:34]} 69. Rd3+ {[%emt 0:00:12] White is clearly winning.} Kg4 {[%emt 0:00:22]} 70. Rd4+ {[%emt 0:01:05]} Kg3 {[%emt 0:00:12]} 71. c4 {[%emt 0:01:01]} h3 {[%emt 0:00:01]} 72. Rd3+ {[%emt 0:00:38]} Kg4 {[%emt 0:00:03]} 73. Rg1+ {[%emt 0:01:02]} Kf5 {[%emt 0:00:58]} 74. Rd5+ {[%emt 0:00:34]} (74. Rxh3 Rxc4+ 75. Ka3 Ra8+ 76. Kb2 (76. Kb3 Raa4 $11) 76... Re4 $16) 74... Ke4 {[%emt 0:00:09]} (74... Kf4 $142 75. Rd4+ Ke5) 75. Rg4+ {[%emt 0:00:37]} Kf3 {[%emt 0:00:01]} 76. Rh4 {[%emt 0:00:06]} h2 {[%emt 0:00:13][%cal Oc7c4]} 77. Rd3+ {[%emt 0:00:09]} ({Not} 77. Rxh2 Rxc4+ 78. Ka5 Ke4 $16) 77... Kg2 {[%emt 0:01:22]} 78. Rd2+ {[%emt 0:00:04]} Kg3 {[%emt 0:00:03]} 79. Rdxh2 {[%emt 0:00:04]} ({Inferior is} 79. Rhxh2 Rxc4+ 80. Kb3 R4c5 $11) 79... Rc5 {[%emt 0:00:03]} 80. R2h3+ {[%emt 0:00:18] Weighted Error Value: White=0.14 (very precise) /Black=0.17 (very precise)   Loses game:     	---       	Black=2      Mistake:       	White=6     	Black=12     Inaccurate:     	White=4     	Black=3      OK:         	White=15    	Black=23     Best:        	White=16    	Black=7      Strong:       	White=8     	Black=2      Brilliant:      	---       	Black=1} 1-0

[Event "AUT Bundesliga 2024-25"]
[Site "Austria"]
[Date "2025.04.04"]
[Round "8.12"]
[White "Bures, Jaroslav"]
[Black "Gschnitzer, Adrian"]
[Result "0-1"]
[Annotator "RC"]
[ECO "B44"]
[WhiteElo "2396"]
[BlackElo "2430"]
[PlyCount "64"]
[EventDate "2024.08.28"]
[EventType "team-tourn"]
[EventCountry "AUT"]
[SourceTitle "playchess.com"]
[Source "ChessBase"]
[SourceQuality "1"]
[TimeControl "40/5400+30:1800+30"]

1. Nf3 {[%emt 0:00:04]} c5 {[%emt 0:00:12]} 2. c4 {[%emt 0:01:07]} Nf6 {[%emt 0:00:08]} 3. Nc3 {[%emt 0:01:32]} Nc6 {[%emt 0:00:15]} 4. d4 {[%emt 0:01:30]} cxd4 {[%emt 0:00:10]} 5. Nxd4 {[%emt 0:00:04]} e6 {[%emt 0:00:10]} 6. e4 {[%emt 0:00:11]} Bb4 {[%emt 0:00:17]} 7. Nxc6 {[%emt 0:00:03]} bxc6 {[%emt 0:00:14]} 8. Bd3 {[%emt 0:00:01]} e5 {[%emt 0:00:40]} 9. O-O {[%emt 0:00:04]} O-O {[%emt 0:00:27]} 10. h3 {[%emt 0:00:02]} Bc5 {[%emt 0:04:44]} 11. Re1 {[%emt 0:10:24]} d6 {[%emt 0:01:26]} 12. Be3 {[%emt 0:05:51]} Bd4 {[%emt 0:00:13]} 13. Qd2 {[%emt 0:06:13]} Rb8 {[%emt 0:02:30]} 14. Rad1 {[%emt 0:05:13]} Re8 {[%emt 0:09:55]} 15. b3 {[%emt 0:10:07]} Bb7 {[%emt 0:06:51]} 16. Bb1 {[%emt 0:14:13]} c5 {[%emt 0:01:32]} 17. f3 {[%emt 0:01:16]} Nh5 {[%emt 0:06:03]} 18. Nb5 {[%emt 0:01:40]} Re6 {[%emt 0:06:30]} 19. Nxd4 {[%emt 0:02:47]} cxd4 {[%emt 0:01:59]} 20. Bg5 {[%emt 0:00:01]} Qd7 {[%emt 0:03:57]} 21. f4 {[%emt 0:05:02]} exf4 {[%emt 0:01:27]} 22. Bxf4 {[%emt 0:05:04]} Rbe8 {[%emt 0:02:34]} 23. Bh2 {[%emt 0:14:53]} Rg6 {[%emt 0:10:30]} 24. Kh1 {[%emt 0:00:31]} f5 {[%emt 0:00:21]} 25. Qxd4 {[%emt 0:00:46]} Nf6 {[%emt 0:00:21]} 26. Qxd6 {[%emt 0:07:26]} Nxe4 {[%emt 0:01:30]} 27. Qf4 {[%emt 0:04:03]} Nf2+ {[%emt 0:06:20]} 28. Qxf2 {[%emt 0:00:40]} Rxe1+ {[%emt 0:00:44]} 29. Rxe1 {[%emt 0:00:57]} Rxg2 {[%emt 0:00:25]} 30. Qxg2 {[%emt 0:01:00]} Bxg2+ {[%emt 0:00:07]} 31. Kxg2 {[%emt 0:01:05]} Qd2+ {[%emt 0:00:09]} 32. Kf1 {[%emt 0:00:29]} Qxh2 {[%emt 0:00:10]} 0-1

[Event "AUT Bundesliga 2024-25"]
[Site "Austria"]
[Date "2025.04.04"]
[Round "8.13"]
[White "Koelle, Tobias"]
[Black "Karthik Venkataraman"]
[Result "1/2-1/2"]
[Annotator "TA"]
[ECO "E61"]
[WhiteElo "2459"]
[BlackElo "2565"]
[PlyCount "91"]
[EventDate "2024.08.28"]
[EventType "team-tourn"]
[EventCountry "AUT"]
[SourceTitle "playchess.com"]
[Source "ChessBase"]
[SourceQuality "1"]
[TimeControl "40/5400+30:1800+30"]

{[%evp 9,91,52,54,41,47,41,43,48,64,25,51,45,40,20,16,20,40,12,25,23,57,37,40,37,52,45,49,29,54,55,58,39,43,30,58,4,0,0,7,7,12,0,15,0,23,14,17,16,29,0,46,46,46,40,41,30,40,37,40,0,32,0,33,0,33,33,32,11,45,0,0,0,0,0,0,0,0,0,0,0,0,0,0,0]} 1. d4 {[%emt 0:00:03]} Nf6 {[%emt 0:00:05]} 2. c4 {[%emt 0:00:02]} g6 {[%emt 0:00:06]} 3. Nc3 {[%emt 0:00:04]} d6 {[%emt 0:00:05]} 4. e4 {[%emt 0:00:24]} Nbd7 {[%emt 0:00:06]} 5. Be3 {[%emt 0:03:51]} e5 {[%emt 0:00:22]} 6. d5 {[%emt 0:01:43] E61: King's Indian: Early deviations for White, including Smyslov System.} h5 {[%emt 0:00:25][%cal Bh7h5,Bh5h4][%mdl 32]} 7. h3 $146 {[%emt 0:11:48]} (7. f3 Bh6 8. Bxh6 Rxh6 9. Qd2 Rh8 10. Nh3 Nc5 11. Nf2 a5 12. Qg5 h4 13. Nd3 Nxd3+ 14. Bxd3 {½-½ Gonzalez Lema,C (2189)-Siddharth,J (2393) La Roda op 49th 2023 (9)}) 7... Bh6 {[%emt 0:04:52]} 8. Bxh6 {[%emt 0:00:37] White is slightly better.} Rxh6 {[%emt 0:00:03]} 9. Nf3 {[%emt 0:00:10]} Kf8 {[%emt 0:01:26]} 10. Be2 {[%emt 0:01:49]} h4 {[%emt 0:05:41]} 11. Nh2 {[%emt 0:11:22]} a5 {[%emt 0:10:13]} 12. O-O {[%emt 0:01:52]} Kg7 {[%emt 0:00:12]} 13. b3 {[%emt 0:05:35]} Qe7 {[%emt 0:04:37]} 14. a3 {[%emt 0:08:11]} c6 {[%emt 0:08:09][%cal Bc7c6,Bc6c5][%mdl 32]} 15. b4 {[%emt 0:06:06]} c5 {[%emt 0:09:43]} 16. bxa5 {[%emt 0:03:52]} Rxa5 {[%emt 0:00:11]} 17. Re1 {[%emt 0:04:15]} Rh8 {[%emt 0:02:29]} 18. Nf1 {[%emt 0:00:43]} Nh7 {[%emt 0:03:21]} 19. Nd2 {[%emt 0:02:13]} Ng5 {[%emt 0:00:30]} 20. a4 {[%emt 0:03:14]} Nf6 {[%emt 0:01:31][%cal Oc8h3]} 21. Kh2 {[%emt 0:02:14]} Qd7 {[%emt 0:02:41][%cal Rg5h3] [#] and ...Nxh3! would now be decisive} 22. Bf1 {[%emt 0:00:46]} (22. Qc2 $14) 22... Nh5 $11 {[%emt 0:00:19]} 23. Nf3 {[%emt 0:03:57]} Qd8 {[%emt 0:02:18]} 24. Nxg5 {[%emt 0:01:36]} Qxg5 {[%emt 0:00:02]} 25. Qc1 {[%emt 0:00:19]} Qe7 {[%emt 0:02:20]} 26. Qd2 {[%emt 0:01:48]} Rf8 {[%emt 0:01:19]} 27. Ra3 {[%emt 0:03:25][%cal Ba1a3,Ba3b3,Bb3b6][%mdl 32]} Ra6 {[%emt 0:00:51]} 28. Rb3 {[%emt 0:08:40]} Qf6 {[%emt 0:14:43]} 29. Reb1 {[%emt 0:02:31]} Rd8 {[%emt 0:00:06]} (29... Bd7 $11) 30. Rb6 $14 {[%emt 0:01:33]} Ra8 {[%emt 0:00:06]} 31. Qe3 {[%emt 0:02:30]} Nf4 {[%emt 0:00:35]} 32. Ra1 {[%emt 0:01:05]} Ra5 {[%emt 0:04:04]} 33. Qd2 {[%emt 0:02:47]} Ra8 {[%emt 0:00:57]} 34. Qe3 {[%emt 0:00:58]} Qe7 {[%emt 0:00:40]} 35. Nb5 {[%emt 0:00:35]} Rd7 {[%emt 0:01:27][%cal Bd8d7,Bd7b7,Bb7b8][%mdl 32]} 36. Nc3 {[%emt 0:01:29]} Qd8 {[%emt 0:00:37]} 37. Rab1 {[%emt 0:00:23]} Ra6 {[%emt 0:00:13]} 38. R6b5 {[%emt 0:03:30]} b6 {[%emt 0:02:05]} 39. Be2 {[%emt 0:00:57]} Rb7 {[%emt 0:01:48] The position is equal.} 40. Bd1 {[%emt 0:00:37]} Bd7 {[%emt 0:02:21]} 41. R5b2 {[%emt 0:30:50]} Qg5 {[%emt 0:31:30][%csl Gf4][%cal Rg5g2] [#]} 42. Qf3 {[%emt 0:00:00] Successful Defense White} Kf8 {[%emt 0:00:00]} 43. Bc2 {[%emt 0:00:00]} Ke7 {[%emt 0:00:00]} 44. Bd1 {[%emt 0:00:00]} Rb8 {[%emt 0:00:00]} 45. Bc2 {[%emt 0:00:00]} Rb7 {[%emt 0:00:00]} 46. Bd1 {[%emt 0:00:00] Weighted Error Value: White=0.12 (very precise) /Black=0.10 (very precise)   Mistake:       	White=1     	Black=1      Inaccurate:     	White=7     	Black=7      OK:         	White=9     	Black=6      Best:        	---       	Black=2} 1/2-1/2

[Event "AUT Bundesliga 2024-25"]
[Site "Austria"]
[Date "2025.04.04"]
[Round "8.14"]
[White "Pajeken, Jakob Leon"]
[Black "Deuer, Marius"]
[Result "1/2-1/2"]
[Annotator "RC"]
[ECO "E15"]
[WhiteElo "2435"]
[BlackElo "2464"]
[PlyCount "61"]
[EventDate "2024.08.28"]
[EventType "team-tourn"]
[EventCountry "AUT"]
[SourceTitle "playchess.com"]
[Source "ChessBase"]
[SourceQuality "1"]
[TimeControl "40/5400+30:1800+30"]

1. d4 {[%emt 0:00:27]} Nf6 {[%emt 0:00:10]} 2. Nf3 {[%emt 0:00:05]} e6 {[%emt 0:00:05]} 3. c4 {[%emt 0:00:18]} b6 {[%emt 0:00:13]} 4. g3 {[%emt 0:00:05]} Ba6 {[%emt 0:00:06]} 5. b3 {[%emt 0:00:13]} Bb4+ {[%emt 0:00:08]} 6. Bd2 {[%emt 0:00:20]} Be7 {[%emt 0:00:07]} 7. Bg2 {[%emt 0:00:36]} O-O {[%emt 0:00:10]} 8. O-O {[%emt 0:00:27]} d5 {[%emt 0:00:06]} 9. Ne5 {[%emt 0:00:26]} Bb7 {[%emt 0:00:18]} 10. Nc3 {[%emt 0:00:47]} Nbd7 {[%emt 0:00:10]} 11. Bf4 {[%emt 0:00:44]} c5 {[%emt 0:00:13]} 12. Rc1 {[%emt 0:00:40]} cxd4 {[%emt 0:00:14]} 13. Qxd4 {[%emt 0:00:05]} Bc5 {[%emt 0:00:05]} 14. Qd1 {[%emt 0:00:05]} Nxe5 {[%emt 0:01:17]} 15. Bxe5 {[%emt 0:00:04]} Rc8 {[%emt 0:00:36]} 16. Rc2 {[%emt 0:00:15]} Qe7 {[%emt 0:04:05]} 17. Bxf6 {[%emt 0:15:11]} Qxf6 {[%emt 0:00:05]} 18. cxd5 {[%emt 0:02:08]} Qe5 {[%emt 0:02:18]} 19. Ne4 {[%emt 0:16:15]} Ba3 {[%emt 0:22:16]} 20. f4 {[%emt 0:03:18]} Qf5 {[%emt 0:07:22]} 21. Rxc8 {[%emt 0:01:15]} Rxc8 {[%emt 0:01:28]} 22. Nf2 {[%emt 0:02:22]} Rd8 {[%emt 0:13:43]} 23. e4 {[%emt 0:02:50]} Qg6 {[%emt 0:00:05]} 24. Qe2 {[%emt 0:10:03]} exd5 {[%emt 0:06:19]} 25. exd5 {[%emt 0:00:26]} Bc5 {[%emt 0:00:20]} 26. Rd1 {[%emt 0:01:35]} h6 {[%emt 0:08:23]} 27. Kh1 {[%emt 0:03:50]} Qf5 {[%emt 0:00:13]} 28. Qd2 {[%emt 0:16:22]} Bxf2 {[%emt 0:08:01]} 29. Qxf2 {[%emt 0:00:06]} Bxd5 {[%emt 0:00:07]} 30. Kg1 {[%emt 0:00:15]} Rd7 {[%emt 0:00:10]} 31. Qe3 {[%emt 0:03:35]} 1/2-1/2

[Event "AUT Bundesliga 2024-25"]
[Site "Austria"]
[Date "2025.04.04"]
[Round "8.15"]
[White "Rosner, Jonas"]
[Black "Janzelj, Tim"]
[Result "1/2-1/2"]
[Annotator "RC"]
[ECO "A81"]
[WhiteElo "2430"]
[BlackElo "2404"]
[PlyCount "116"]
[EventDate "2024.08.28"]
[EventType "team-tourn"]
[EventCountry "AUT"]
[SourceTitle "playchess.com"]
[Source "ChessBase"]
[SourceQuality "1"]
[TimeControl "40/5400+30:1800+30"]

1. Nf3 {[%emt 0:00:05]} f5 {[%emt 0:00:08]} 2. d4 {[%emt 0:00:36]} e6 {[%emt 0:00:30]} 3. g3 {[%emt 0:00:19]} Nf6 {[%emt 0:00:07]} 4. Bg2 {[%emt 0:00:20]} d5 {[%emt 0:00:05]} 5. Bf4 {[%emt 0:00:27]} Be7 {[%emt 0:04:19]} 6. c4 {[%emt 0:01:10]} O-O {[%emt 0:03:30]} 7. O-O {[%emt 0:01:28]} Ne4 {[%emt 0:00:48]} 8. Nc3 {[%emt 0:04:23]} g5 {[%emt 0:04:52]} 9. Be3 {[%emt 0:02:24]} Nc6 {[%emt 0:05:25]} 10. Qc2 {[%emt 0:07:17]} f4 {[%emt 0:08:23]} 11. gxf4 {[%emt 0:12:25]} gxf4 {[%emt 0:00:12]} 12. Bc1 {[%emt 0:01:22]} Ng5 {[%emt 0:20:41]} 13. e3 {[%emt 0:19:30]} Kh8 {[%emt 0:12:59]} 14. Kh1 {[%emt 0:07:53]} Qe8 {[%emt 0:02:58]} 15. Nxg5 {[%emt 0:08:39]} Bxg5 {[%emt 0:00:02]} 16. exf4 {[%emt 0:00:48]} Bxf4 {[%emt 0:01:14]} 17. Bxf4 {[%emt 0:02:04]} Rxf4 {[%emt 0:00:01]} 18. cxd5 {[%emt 0:00:35]} Nxd4 {[%emt 0:01:10]} 19. Qd2 {[%emt 0:01:22]} e5 {[%emt 0:01:46]} 20. Rae1 {[%emt 0:00:51]} Bg4 {[%emt 0:08:59]} 21. f3 {[%emt 0:03:08]} Bh5 {[%emt 0:02:11]} 22. Qe3 {[%emt 0:06:34]} Rd8 {[%emt 0:05:42]} 23. Qxe5+ {[%emt 0:02:54]} Qxe5 {[%emt 0:00:02]} 24. Rxe5 {[%emt 0:00:06]} Bxf3 {[%emt 0:00:08]} 25. Bxf3 {[%emt 0:01:18]} Nxf3 {[%emt 0:01:29]} 26. Re7 {[%emt 0:03:55]} c6 {[%emt 0:01:16]} 27. dxc6 {[%emt 0:01:11]} bxc6 {[%emt 0:00:01]} 28. Ne4 {[%emt 0:05:40]} Nh4 {[%emt 0:02:11]} 29. Re1 {[%emt 0:02:03]} Rdf8 {[%emt 0:01:33]} 30. Ng3 {[%emt 0:01:38]} Rf2 {[%emt 0:00:45]} 31. R7e2 {[%emt 0:00:02]} Kg7 {[%emt 0:07:08]} 32. b3 {[%emt 0:00:15]} a5 {[%emt 0:00:34]} 33. Kg1 {[%emt 0:00:44]} Rxe2 {[%emt 0:00:27]} 34. Rxe2 {[%emt 0:00:02]} Kg6 {[%emt 0:01:05]} 35. h3 {[%emt 0:02:44]} Rf3 {[%emt 0:01:22]} 36. Kh2 {[%emt 0:00:13]} Rd3 {[%emt 0:00:35]} 37. Ne4 {[%emt 0:00:57]} Kf5 {[%emt 0:00:34]} 38. Nf2 {[%emt 0:01:22]} Rc3 {[%emt 0:01:12]} 39. Re4 {[%emt 0:00:37]} Ng6 {[%emt 0:02:46]} 40. Ra4 {[%emt 0:00:30]} Rc2 {[%emt 0:00:35]} 41. Kg3 {[%emt 0:01:14]} Rc3+ {[%emt 0:00:38]} 42. Kh2 {[%emt 0:02:27]} c5 {[%emt 0:10:11]} 43. Nd1 {[%emt 0:03:17]} Rd3 {[%emt 0:01:05]} 44. Nf2 {[%emt 0:00:29]} Rd2 {[%emt 0:05:23]} 45. Kg3 {[%emt 0:01:51]} Rc2 {[%emt 0:03:47]} 46. Nd1 {[%emt 0:01:25]} Ke5 {[%emt 0:06:25]} 47. Ne3 {[%emt 0:02:35]} Rc3 {[%emt 0:01:08]} 48. Kf3 {[%emt 0:00:39]} Ne7 {[%emt 0:03:01]} 49. Rc4 {[%emt 0:06:56]} Nd5 {[%emt 0:00:59]} 50. Rxc3 {[%emt 0:03:00]} Nxc3 {[%emt 0:00:01]} 51. Nc4+ {[%emt 0:00:33]} Kd4 {[%emt 0:00:05]} 52. Nxa5 {[%emt 0:00:13]} Nxa2 {[%emt 0:00:05]} 53. Kf4 {[%emt 0:00:37]} Nc1 {[%emt 0:03:08]} 54. Kg5 {[%emt 0:01:02]} Kc3 {[%emt 0:00:41]} 55. Nb7 {[%emt 0:00:34]} Nxb3 {[%emt 0:00:09]} 56. Kh6 {[%emt 0:00:39]} Kd4 {[%emt 0:00:11]} 57. Kxh7 {[%emt 0:01:19]} Ke5 {[%emt 0:00:34]} 58. Nxc5 {[%emt 0:00:09]} Nxc5 {[%emt 0:00:05]} 1/2-1/2